[Event "Early-Titled-Tuesday-Blitz-February-20-2024"]
[Site "Chess.com"]
[Date "2024.02.20"]
[Round "9"]
[White "Ali_rastbod"]
[Black "inagreV"]
[Result "1/2-1/2"]
[WhiteElo "2693"]
[BlackElo "2409"]
[TimeControl "180+1"]
[EndTime "9:48:27 PST"]
[Termination "Game drawn - insufficient material"]

1. Nf3 {[%clk 0:02:55]} 1... Nf6 {[%clk 0:02:59.1]} 2. b3 {[%clk 0:02:54.5]}
2... d5 {[%clk 0:02:58.8]} 3. Bb2 {[%clk 0:02:55.4]} 3... e6 {[%clk 0:02:58.2]}
4. g3 {[%clk 0:02:55.7]} 4... b6 {[%clk 0:02:53]} 5. Bg2 {[%clk 0:02:56.1]} 5...
Bb7 {[%clk 0:02:53.4]} 6. O-O {[%clk 0:02:56.9]} 6... Nbd7 {[%clk 0:02:53.5]} 7.
c4 {[%clk 0:02:57.5]} 7... Bd6 {[%clk 0:02:53.8]} 8. cxd5 {[%clk 0:02:57.3]}
8... exd5 {[%clk 0:02:53.8]} 9. Nd4 {[%clk 0:02:57.8]} 9... a6 {[%clk
0:02:27.7]} 10. Nf5 {[%clk 0:02:55.9]} 10... Bf8 {[%clk 0:02:26.9]} 11. e4
{[%clk 0:01:53.3]} 11... dxe4 {[%clk 0:02:15]} 12. d3 {[%clk 0:01:49.6]} 12...
g6 {[%clk 0:02:12.7]} 13. dxe4 {[%clk 0:01:12.4]} 13... gxf5 {[%clk 0:02:01.7]}
14. e5 {[%clk 0:01:05.9]} 14... Bxg2 {[%clk 0:02:00.9]} 15. exf6 {[%clk
0:01:05.2]} 15... Bxf1 {[%clk 0:01:31.3]} 16. Qe1+ {[%clk 0:00:56.7]} 16... Be7
{[%clk 0:01:31.4]} 17. fxe7 {[%clk 0:00:55.4]} 17... Qxe7 {[%clk 0:01:25.6]} 18.
Qxe7+ {[%clk 0:00:49.2]} 18... Kxe7 {[%clk 0:01:25.9]} 19. Bxh8 {[%clk
0:00:48.8]} 19... Rxh8 {[%clk 0:01:21.9]} 20. Kxf1 {[%clk 0:00:47.9]} 20... Rd8
{[%clk 0:01:20.8]} 21. Nc3 {[%clk 0:00:48.1]} 21... Nf6 {[%clk 0:01:19.1]} 22.
Rc1 {[%clk 0:00:41.2]} 22... Rd2 {[%clk 0:01:12.9]} 23. Ke1 {[%clk 0:00:30.2]}
23... Rb2 {[%clk 0:01:10.1]} 24. Na4 {[%clk 0:00:30.4]} 24... Rxa2 {[%clk
0:01:06.8]} 25. Rxc7+ {[%clk 0:00:31.2]} 25... Kf8 {[%clk 0:01:06.6]} 26. Nxb6
{[%clk 0:00:25.9]} 26... Ne4 {[%clk 0:01:01.5]} 27. Nd7+ {[%clk 0:00:17.9]}
27... Kg7 {[%clk 0:01:00.3]} 28. Ne5 {[%clk 0:00:16.2]} 28... Kf6 {[%clk
0:00:49]} 29. f4 {[%clk 0:00:14.8]} 29... Nd6 {[%clk 0:00:45.1]} 30. Rd7 {[%clk
0:00:12.3]} 30... Ke6 {[%clk 0:00:45.4]} 31. Rc7 {[%clk 0:00:09.6]} 31... Rxh2
{[%clk 0:00:44.9]} 32. Nf3 {[%clk 0:00:07.3]} 32... Rb2 {[%clk 0:00:41.4]} 33.
Kf1 {[%clk 0:00:03.2]} 33... Ne4 {[%clk 0:00:40.6]} 34. Nd4+ {[%clk 0:00:02.6]}
34... Kd6 {[%clk 0:00:38.2]} 35. Rxf7 {[%clk 0:00:02.9]} 35... Nxg3+ {[%clk
0:00:37]} 36. Ke1 {[%clk 0:00:03.5]} 36... Kd5 {[%clk 0:00:30.1]} 37. Nxf5
{[%clk 0:00:03.9]} 37... Nxf5 {[%clk 0:00:29.9]} 38. Rxf5+ {[%clk 0:00:04.8]}
38... Ke4 {[%clk 0:00:30.8]} 39. Rf6 {[%clk 0:00:04.8]} 39... Rxb3 {[%clk
0:00:27.9]} 40. Rxa6 {[%clk 0:00:04.6]} 40... Kxf4 {[%clk 0:00:28.4]} 41. Kf2
{[%clk 0:00:05]} 41... h5 {[%clk 0:00:25.6]} 42. Ra4+ {[%clk 0:00:04.3]} 42...
Kg5 {[%clk 0:00:25.5]} 43. Kg2 {[%clk 0:00:04.8]} 43... h4 {[%clk 0:00:24.6]}
44. Kh2 {[%clk 0:00:05.4]} 44... Rf3 {[%clk 0:00:23.7]} 45. Kg2 {[%clk
0:00:05.7]} 45... Rf5 {[%clk 0:00:23.6]} 46. Kh3 {[%clk 0:00:05.6]} 46... Rb5
{[%clk 0:00:22.8]} 47. Rg4+ {[%clk 0:00:04.9]} 47... Kf5 {[%clk 0:00:21.8]} 48.
Kxh4 {[%clk 0:00:05.2]} 48... Rb1 {[%clk 0:00:20.5]} 49. Rg5+ {[%clk 0:00:04.5]}
49... Kf6 {[%clk 0:00:19.9]} 50. Rg3 {[%clk 0:00:04]} 50... Rh1+ {[%clk
0:00:19.3]} 51. Kg4 {[%clk 0:00:04.4]} 51... Rf1 {[%clk 0:00:19.4]} 52. Kh3
{[%clk 0:00:04.2]} 52... Kf5 {[%clk 0:00:18.9]} 53. Kg2 {[%clk 0:00:04.7]} 53...
Rf4 {[%clk 0:00:18.9]} 54. Rb3 {[%clk 0:00:04.9]} 54... Rg4+ {[%clk 0:00:19.1]}
55. Kf3 {[%clk 0:00:05.5]} 55... Rf4+ {[%clk 0:00:18.7]} 56. Kg3 {[%clk
0:00:06.2]} 56... Rg4+ {[%clk 0:00:19.1]} 57. Kh3 {[%clk 0:00:06.9]} 57... Re4
{[%clk 0:00:19.2]} 58. Ra3 {[%clk 0:00:06.7]} 58... Kf4 {[%clk 0:00:19.5]} 59.
Kg2 {[%clk 0:00:07.2]} 59... Re3 {[%clk 0:00:19.7]} 60. Ra4+ {[%clk 0:00:07.1]}
60... Re4 {[%clk 0:00:20.2]} 61. Ra8 {[%clk 0:00:07.2]} 61... Ke3 {[%clk
0:00:20.4]} 62. Kf1 {[%clk 0:00:07]} 62... Kf3 {[%clk 0:00:20.1]} 63. Ra3+
{[%clk 0:00:06.2]} 63... Re3 {[%clk 0:00:20.3]} 64. Ra2 {[%clk 0:00:06.8]} 64...
Rb3 {[%clk 0:00:20.2]} 65. Rf2+ {[%clk 0:00:06.8]} 65... Kg3 {[%clk 0:00:20]}
66. Rg2+ {[%clk 0:00:07.3]} 66... Kh3 {[%clk 0:00:20.2]} 67. Re2 {[%clk
0:00:08]} 67... Rb1+ {[%clk 0:00:20.3]} 68. Kf2 {[%clk 0:00:08.1]} 68... Rb3
{[%clk 0:00:20.9]} 69. Re3+ {[%clk 0:00:07.9]} 69... Rxe3 {[%clk 0:00:21]} 70.
Kxe3 {[%clk 0:00:08.8]} 1/2-1/2

[Event "Early-Titled-Tuesday-Blitz-February-20-2024"]
[Site "Chess.com"]
[Date "2024.02.20"]
[Round "9"]
[White "KononenkoD"]
[Black "Goryachkina"]
[Result "1/2-1/2"]
[WhiteElo "2543"]
[BlackElo "2705"]
[TimeControl "180+1"]
[EndTime "9:48:28 PST"]
[Termination "Game drawn by repetition"]

1. d4 {[%clk 0:03:00.2]} 1... Nf6 {[%clk 0:02:59.5]} 2. c4 {[%clk 0:03:00.5]}
2... e6 {[%clk 0:02:59.7]} 3. g3 {[%clk 0:03:00.8]} 3... d5 {[%clk 0:02:58.4]}
4. Nf3 {[%clk 0:03:01.1]} 4... dxc4 {[%clk 0:02:51.5]} 5. Qa4+ {[%clk
0:02:58.9]} 5... Nbd7 {[%clk 0:02:48.5]} 6. Bg2 {[%clk 0:02:56]} 6... a6 {[%clk
0:02:47.8]} 7. Qxc4 {[%clk 0:02:55.5]} 7... b5 {[%clk 0:02:47.9]} 8. Qc2 {[%clk
0:02:53.8]} 8... Bb7 {[%clk 0:02:47.2]} 9. a4 {[%clk 0:02:51.5]} 9... c5 {[%clk
0:02:44.1]} 10. axb5 {[%clk 0:02:51.3]} 10... axb5 {[%clk 0:02:44.4]} 11. Rxa8
{[%clk 0:02:51.5]} 11... Bxa8 {[%clk 0:02:40.3]} 12. dxc5 {[%clk 0:02:48.1]}
12... Bxc5 {[%clk 0:02:39.5]} 13. O-O {[%clk 0:02:48.2]} 13... O-O {[%clk
0:02:39.2]} 14. Nc3 {[%clk 0:02:42.7]} 14... Qb6 {[%clk 0:02:36.4]} 15. Qd3
{[%clk 0:02:30.5]} 15... Bc6 {[%clk 0:02:32.6]} 16. Bf4 {[%clk 0:02:05.3]} 16...
b4 {[%clk 0:02:24.8]} 17. Nd1 {[%clk 0:02:02.8]} 17... Bb5 {[%clk 0:02:08.7]}
18. Qc2 {[%clk 0:01:59.1]} 18... h6 {[%clk 0:01:58.3]} 19. Ne5 {[%clk
0:01:43.9]} 19... Nxe5 {[%clk 0:01:36.4]} 20. Bxe5 {[%clk 0:01:44.8]} 20... Nd5
{[%clk 0:01:36]} 21. Re1 {[%clk 0:01:16.2]} 21... Rd8 {[%clk 0:01:24.1]} 22. e3
{[%clk 0:01:10.7]} 22... Ne7 {[%clk 0:01:17.4]} 23. b3 {[%clk 0:01:00.2]} 23...
Bd3 {[%clk 0:01:02.6]} 24. Qc1 {[%clk 0:00:55.2]} 24... Rc8 {[%clk 0:00:56.6]}
25. Qd2 {[%clk 0:00:35.8]} 25... Rd8 {[%clk 0:00:56.6]} 26. Qa2 {[%clk
0:00:32.5]} 26... Ng6 {[%clk 0:00:48.2]} 27. Ba1 {[%clk 0:00:22.3]} 27... Bb5
{[%clk 0:00:44.8]} 28. Nb2 {[%clk 0:00:20.9]} 28... Rd2 {[%clk 0:00:26.6]} 29.
Qa8+ {[%clk 0:00:20.1]} 29... Kh7 {[%clk 0:00:26.2]} 30. Na4 {[%clk 0:00:20]}
30... Qd6 {[%clk 0:00:21.8]} 31. Nxc5 {[%clk 0:00:19.7]} 31... Qxc5 {[%clk
0:00:21.9]} 32. Qb7 {[%clk 0:00:17.1]} 32... Be8 {[%clk 0:00:13.2]} 33. Qb8
{[%clk 0:00:12]} 33... Bd7 {[%clk 0:00:13]} 34. h4 {[%clk 0:00:08.7]} 34... h5
{[%clk 0:00:11.9]} 35. Bf3 {[%clk 0:00:07.5]} 35... Qc2 {[%clk 0:00:10.3]} 36.
Rf1 {[%clk 0:00:04.6]} 36... Qf5 {[%clk 0:00:10.4]} 37. Qb7 {[%clk 0:00:02.6]}
37... Bc8 {[%clk 0:00:04.5]} 38. Qe4 {[%clk 0:00:02]} 38... Qxe4 {[%clk
0:00:04.6]} 39. Bxe4 {[%clk 0:00:02.9]} 39... Ba6 {[%clk 0:00:02.7]} 40. Rc1
{[%clk 0:00:02.4]} 40... Be2 {[%clk 0:00:02.8]} 41. Bd4 {[%clk 0:00:02.6]} 41...
f5 {[%clk 0:00:02.6]} 42. Bg2 {[%clk 0:00:02.5]} 42... e5 {[%clk 0:00:03.1]} 43.
Bc5 {[%clk 0:00:02.1]} 43... e4 {[%clk 0:00:02.8]} 44. Bxb4 {[%clk 0:00:03]}
44... Rb2 {[%clk 0:00:03]} 45. Rc3 {[%clk 0:00:03.2]} 45... Ne5 {[%clk
0:00:02.6]} 46. Kh2 {[%clk 0:00:04.1]} 46... Nf3+ {[%clk 0:00:03]} 47. Bxf3
{[%clk 0:00:04.1]} 47... Bxf3 {[%clk 0:00:03.9]} 48. Rc1 {[%clk 0:00:04.4]}
48... Rxf2+ {[%clk 0:00:04.2]} 49. Kg1 {[%clk 0:00:04.7]} 49... Rb2 {[%clk
0:00:05.1]} 50. Bc3 {[%clk 0:00:04.3]} 50... Rxb3 {[%clk 0:00:05.5]} 51. Be5
{[%clk 0:00:05.2]} 51... Ra3 {[%clk 0:00:04.6]} 52. Rc2 {[%clk 0:00:05.5]} 52...
Rb3 {[%clk 0:00:04.6]} 53. Kf2 {[%clk 0:00:06.4]} 53... Rb1 {[%clk 0:00:04.7]}
54. Bf4 {[%clk 0:00:06.9]} 54... Rd1 {[%clk 0:00:04.5]} 55. Be5 {[%clk 0:00:07]}
55... Rh1 {[%clk 0:00:04.6]} 56. Rc7 {[%clk 0:00:06.4]} 56... Rh2+ {[%clk
0:00:04.4]} 57. Kf1 {[%clk 0:00:06.8]} 57... Rh1+ {[%clk 0:00:04.4]} 58. Kf2
{[%clk 0:00:06.1]} 58... Rh2+ {[%clk 0:00:05]} 59. Kf1 {[%clk 0:00:06.6]} 59...
Rh1+ {[%clk 0:00:05.5]} 60. Kf2 {[%clk 0:00:07.1]} 1/2-1/2

[Event "Early-Titled-Tuesday-Blitz-February-20-2024"]
[Site "Chess.com"]
[Date "2024.02.20"]
[Round "9"]
[White "wonderfultime"]
[Black "Beca95"]
[Result "0-1"]
[WhiteElo "3044"]
[BlackElo "2899"]
[TimeControl "180+1"]
[EndTime "9:48:34 PST"]
[Termination "Beca95 won on time"]

1. d4 {[%clk 0:02:58.4]} 1... g6 {[%clk 0:03:00.9]} 2. e4 {[%clk 0:02:57]} 2...
Bg7 {[%clk 0:03:01.3]} 3. Bc4 {[%clk 0:02:57.2]} 3... e6 {[%clk 0:02:59.5]} 4.
Bb3 {[%clk 0:02:56.9]} 4... d6 {[%clk 0:02:58.7]} 5. Nf3 {[%clk 0:02:55.8]} 5...
Ne7 {[%clk 0:02:58.9]} 6. O-O {[%clk 0:02:56]} 6... b6 {[%clk 0:02:59.2]} 7. Re1
{[%clk 0:02:56.4]} 7... Bb7 {[%clk 0:02:59.6]} 8. Nbd2 {[%clk 0:02:56.8]} 8...
Nd7 {[%clk 0:03:00]} 9. Nf1 {[%clk 0:02:57.4]} 9... h6 {[%clk 0:03:00.5]} 10.
Ng3 {[%clk 0:02:58]} 10... a6 {[%clk 0:03:01]} 11. c3 {[%clk 0:02:58.5]} 11...
c5 {[%clk 0:03:00.9]} 12. h3 {[%clk 0:02:56.4]} 12... Qc7 {[%clk 0:03:00.6]} 13.
Bf4 {[%clk 0:02:52.9]} 13... c4 {[%clk 0:03:00.5]} 14. Bc2 {[%clk 0:02:52.6]}
14... b5 {[%clk 0:03:00.8]} 15. a4 {[%clk 0:02:46.9]} 15... e5 {[%clk
0:03:00.3]} 16. Be3 {[%clk 0:02:46.1]} 16... O-O {[%clk 0:03:00]} 17. Qd2 {[%clk
0:02:46.2]} 17... Kh7 {[%clk 0:02:59.3]} 18. Rad1 {[%clk 0:02:46.6]} 18... Rad8
{[%clk 0:02:52.3]} 19. Qc1 {[%clk 0:02:10.1]} 19... Nc6 {[%clk 0:02:49.3]} 20.
axb5 {[%clk 0:01:51.2]} 20... axb5 {[%clk 0:02:48.8]} 21. h4 {[%clk 0:01:52]}
21... Nf6 {[%clk 0:02:39.9]} 22. Nh2 {[%clk 0:01:37]} 22... Bc8 {[%clk
0:02:19.6]} 23. d5 {[%clk 0:01:27]} 23... Na5 {[%clk 0:02:18.1]} 24. f4 {[%clk
0:01:25.8]} 24... exf4 {[%clk 0:02:15]} 25. Bxf4 {[%clk 0:01:26.7]} 25... Nd7
{[%clk 0:02:14.3]} 26. Nf3 {[%clk 0:01:20.9]} 26... Ne5 {[%clk 0:02:08]} 27.
Nxe5 {[%clk 0:01:19.4]} 27... Bxe5 {[%clk 0:02:02]} 28. Rf1 {[%clk 0:01:15.6]}
28... Nb7 {[%clk 0:02:01.5]} 29. Rd2 {[%clk 0:01:06]} 29... Qe7 {[%clk
0:02:00.9]} 30. Rdf2 {[%clk 0:01:05.2]} 30... Nc5 {[%clk 0:01:57.9]} 31. Qe3
{[%clk 0:00:59.2]} 31... h5 {[%clk 0:01:49.7]} 32. Ne2 {[%clk 0:00:52.3]} 32...
Kg8 {[%clk 0:01:46.6]} 33. Nd4 {[%clk 0:00:51.8]} 33... Qxh4 {[%clk 0:01:44.6]}
34. Bxe5 {[%clk 0:00:48.7]} 34... dxe5 {[%clk 0:01:45]} 35. Nc6 {[%clk
0:00:49.4]} 35... Nd7 {[%clk 0:01:42.6]} 36. Nxd8 {[%clk 0:00:49.2]} 36... Qxd8
{[%clk 0:01:43.5]} 37. Bd1 {[%clk 0:00:40.4]} 37... Kg7 {[%clk 0:01:42.6]} 38.
Bxh5 {[%clk 0:00:37.4]} 38... Qb6 {[%clk 0:01:23.5]} 39. Qxb6 {[%clk 0:00:32.1]}
39... Nxb6 {[%clk 0:01:24.4]} 40. Bxg6 {[%clk 0:00:32.3]} 40... f6 {[%clk
0:01:21.9]} 41. Bf5 {[%clk 0:00:31.6]} 41... Bxf5 {[%clk 0:01:21.4]} 42. Rxf5
{[%clk 0:00:32.4]} 42... Nc8 {[%clk 0:01:21.7]} 43. R5f3 {[%clk 0:00:25.9]}
43... Nd6 {[%clk 0:01:21.8]} 44. Rg3+ {[%clk 0:00:26.6]} 44... Kf7 {[%clk
0:01:21.7]} 45. Rg4 {[%clk 0:00:26.8]} 45... Ra8 {[%clk 0:01:20.6]} 46. Rf2
{[%clk 0:00:25]} 46... Ra1+ {[%clk 0:01:20.2]} 47. Kh2 {[%clk 0:00:25.4]} 47...
Re1 {[%clk 0:01:20.7]} 48. Rf3 {[%clk 0:00:20.5]} 48... Nxe4 {[%clk 0:01:20.3]}
49. Rh3 {[%clk 0:00:18.6]} 49... Ng5 {[%clk 0:01:12.1]} 50. Rh8 {[%clk
0:00:17.4]} 50... Rd1 {[%clk 0:01:11.9]} 51. Rb8 {[%clk 0:00:15.3]} 51... Rxd5
{[%clk 0:01:11.3]} 52. Rb6 {[%clk 0:00:13]} 52... Kg6 {[%clk 0:01:10.7]} 53. Rg3
{[%clk 0:00:09.6]} 53... Kf5 {[%clk 0:01:09.9]} 54. Re3 {[%clk 0:00:10.1]} 54...
e4 {[%clk 0:01:06.1]} 55. Re2 {[%clk 0:00:10.2]} 55... Ke5 {[%clk 0:01:06.2]}
56. g4 {[%clk 0:00:06.3]} 56... f5 {[%clk 0:00:53.4]} 57. gxf5 {[%clk 0:00:06]}
57... Kxf5 {[%clk 0:00:54.3]} 58. Kg3 {[%clk 0:00:06.6]} 58... Rd3+ {[%clk
0:00:53.9]} 59. Kg2 {[%clk 0:00:07.3]} 59... Rd5 {[%clk 0:00:51.8]} 60. Kf2
{[%clk 0:00:06.7]} 60... Nh3+ {[%clk 0:00:49.8]} 61. Ke1 {[%clk 0:00:04.7]}
61... Nf4 {[%clk 0:00:49.5]} 62. Rh2 {[%clk 0:00:04.6]} 62... e3 {[%clk
0:00:49.6]} 63. Rb8 {[%clk 0:00:04.3]} 63... Ke4 {[%clk 0:00:43.7]} 64. Rh4
{[%clk 0:00:04.2]} 64... Rg5 {[%clk 0:00:38.8]} 65. Re8+ {[%clk 0:00:02.4]}
65... Kf3 {[%clk 0:00:38.9]} 66. Rh1 {[%clk 0:00:02.6]} 66... Nd3+ {[%clk
0:00:37]} 67. Kf1 {[%clk 0:00:02]} 67... Nf4 {[%clk 0:00:35.2]} 68. Ke1 {[%clk
0:00:02]} 68... e2 {[%clk 0:00:28.1]} 69. Rf8 {[%clk 0:00:01.5]} 69... Rd5
{[%clk 0:00:17.6]} 0-1

[Event "Early-Titled-Tuesday-Blitz-February-20-2024"]
[Site "Chess.com"]
[Date "2024.02.20"]
[Round "9"]
[White "zverr1"]
[Black "Al_Shima"]
[Result "1-0"]
[WhiteElo "2551"]
[BlackElo "2379"]
[TimeControl "180+1"]
[EndTime "9:48:47 PST"]
[Termination "zverr1 won on time"]

1. e4 {[%clk 0:02:57.5]} 1... c5 {[%clk 0:03:00.4]} 2. Nf3 {[%clk 0:02:57.4]}
2... e6 {[%clk 0:02:59.3]} 3. b3 {[%clk 0:02:57.4]} 3... d6 {[%clk 0:02:54.3]}
4. d4 {[%clk 0:02:57.1]} 4... cxd4 {[%clk 0:02:46.7]} 5. Nxd4 {[%clk 0:02:58]}
5... Nf6 {[%clk 0:02:43.5]} 6. Bd3 {[%clk 0:02:57.4]} 6... a6 {[%clk 0:02:43.9]}
7. c4 {[%clk 0:02:57.4]} 7... Be7 {[%clk 0:02:41]} 8. Bb2 {[%clk 0:02:57.1]}
8... Qc7 {[%clk 0:02:38.8]} 9. Nc3 {[%clk 0:02:56.8]} 9... b6 {[%clk 0:02:26.1]}
10. Qe2 {[%clk 0:02:56.2]} 10... Bb7 {[%clk 0:02:25.5]} 11. O-O {[%clk
0:02:56.6]} 11... Nc6 {[%clk 0:02:24.4]} 12. Nxc6 {[%clk 0:02:55.9]} 12... Bxc6
{[%clk 0:02:23.9]} 13. Kh1 {[%clk 0:02:56.5]} 13... O-O {[%clk 0:02:23.4]} 14.
f4 {[%clk 0:02:54.5]} 14... Nd7 {[%clk 0:02:21.1]} 15. Rac1 {[%clk 0:02:51.1]}
15... Bf6 {[%clk 0:02:11.2]} 16. Nd5 {[%clk 0:02:29.9]} 16... Qd8 {[%clk
0:02:01.1]} 17. Nxf6+ {[%clk 0:02:27.9]} 17... Nxf6 {[%clk 0:02:02]} 18. Rcd1
{[%clk 0:02:20.9]} 18... Qe7 {[%clk 0:01:43.6]} 19. e5 {[%clk 0:02:05.4]} 19...
dxe5 {[%clk 0:01:37.8]} 20. fxe5 {[%clk 0:01:23.5]} 20... Ne8 {[%clk 0:01:19]}
21. Qh5 {[%clk 0:01:10.5]} 21... g6 {[%clk 0:01:16.9]} 22. Qh6 {[%clk
0:01:10.5]} 22... Ng7 {[%clk 0:01:16.4]} 23. Rf4 {[%clk 0:00:53.1]} 23... Nh5
{[%clk 0:00:49.7]} 24. Rf2 {[%clk 0:00:11.8]} 24... Qh4 {[%clk 0:00:20.2]} 25.
Qe3 {[%clk 0:00:12.1]} 25... Rad8 {[%clk 0:00:20.3]} 26. Rfd2 {[%clk 0:00:11.7]}
26... Nf4 {[%clk 0:00:16.7]} 27. Bf1 {[%clk 0:00:07.7]} 27... Qg4 {[%clk
0:00:05.1]} 28. Bd4 {[%clk 0:00:03]} 28... Nh3 {[%clk 0:00:02.8]} 29. Re2 {[%clk
0:00:01.7]} 29... Rd7 {[%clk 0:00:02.7]} 30. Rdd2 {[%clk 0:00:02.1]} 30... Rfd8
{[%clk 0:00:02.6]} 31. Qg3 {[%clk 0:00:01.7]} 31... Qxg3 {[%clk 0:00:02.6]} 32.
hxg3 {[%clk 0:00:02.4]} 32... Ng5 {[%clk 0:00:03.5]} 33. Be3 {[%clk 0:00:02.1]}
33... Ne4 {[%clk 0:00:03.9]} 34. Rxd7 {[%clk 0:00:02.1]} 34... Rxd7 {[%clk
0:00:04.8]} 35. Kh2 {[%clk 0:00:02.2]} 35... b5 {[%clk 0:00:04.1]} 36. cxb5
{[%clk 0:00:02.5]} 36... Bxb5 {[%clk 0:00:03.5]} 37. Re1 {[%clk 0:00:03.3]}
37... Bxf1 {[%clk 0:00:02.5]} 38. Rxf1 {[%clk 0:00:04.2]} 38... Nc3 {[%clk
0:00:02.6]} 39. Rc1 {[%clk 0:00:04]} 39... Nd5 {[%clk 0:00:02]} 40. Bh6 {[%clk
0:00:02.8]} 40... Rd8 {[%clk 0:00:02.6]} 41. Rc6 {[%clk 0:00:02.8]} 41... Ra8
{[%clk 0:00:02.4]} 42. Bg5 {[%clk 0:00:02.7]} 42... Nb4 {[%clk 0:00:02.7]} 43.
Rb6 {[%clk 0:00:02.8]} 43... Nxa2 {[%clk 0:00:02.8]} 44. Bf6 {[%clk 0:00:02.6]}
44... Nc3 {[%clk 0:00:03]} 45. Kh3 {[%clk 0:00:02.4]} 45... Nd5 {[%clk
0:00:03.6]} 46. Rb7 {[%clk 0:00:02.7]} 46... h5 {[%clk 0:00:03.5]} 47. Kh4
{[%clk 0:00:02.4]} 47... a5 {[%clk 0:00:04.1]} 48. Kg5 {[%clk 0:00:02.6]} 48...
Ne3 {[%clk 0:00:04.5]} 49. Rc7 {[%clk 0:00:01.3]} 49... Nf5 {[%clk 0:00:04.6]}
50. Rd7 {[%clk 0:00:01.6]} 50... Rb8 {[%clk 0:00:05]} 51. g4 {[%clk 0:00:01.8]}
51... hxg4 {[%clk 0:00:04.9]} 52. Kxg4 {[%clk 0:00:02.5]} 52... Ne3+ {[%clk
0:00:04.7]} 53. Kg5 {[%clk 0:00:02.9]} 53... Nf5 {[%clk 0:00:04.6]} 54. g3
{[%clk 0:00:03.4]} 54... Rc8 {[%clk 0:00:03]} 55. Ra7 {[%clk 0:00:03.9]} 55...
Nxg3 {[%clk 0:00:02.2]} 56. Rxa5 {[%clk 0:00:04.1]} 56... Ne4+ {[%clk
0:00:02.6]} 57. Kh6 {[%clk 0:00:04.4]} 57... Nxf6 {[%clk 0:00:02.4]} 58. exf6
{[%clk 0:00:05.3]} 58... Rb8 {[%clk 0:00:02.9]} 59. b4 {[%clk 0:00:04.4]} 59...
Kf8 {[%clk 0:00:03.4]} 60. b5 {[%clk 0:00:03.3]} 60... Ke8 {[%clk 0:00:03.9]}
61. Kg7 {[%clk 0:00:02.4]} 61... e5 {[%clk 0:00:02]} 62. b6 {[%clk 0:00:02.4]}
62... Kd7 {[%clk 0:00:01.3]} 63. Rxe5 {[%clk 0:00:02.8]} 63... Kd6 {[%clk
0:00:01.3]} 64. Re7 {[%clk 0:00:02.3]} 64... Rxb6 {[%clk 0:00:01.6]} 65. Kxf7
{[%clk 0:00:02.2]} 65... g5 {[%clk 0:00:01.9]} 66. Re6+ {[%clk 0:00:02.8]} 66...
Kc5 {[%clk 0:00:01.8]} 67. Re5+ {[%clk 0:00:03.4]} 67... Kd4 {[%clk 0:00:01.8]}
68. Rxg5 {[%clk 0:00:04.3]} 68... Rb7+ {[%clk 0:00:01.9]} 69. Kg6 {[%clk
0:00:04.5]} 69... Ke4 {[%clk 0:00:01.7]} 70. f7 {[%clk 0:00:04.9]} 70... Rb6+
{[%clk 0:00:02]} 71. Kg7 {[%clk 0:00:05.1]} 71... Rb7 {[%clk 0:00:02.5]} 72. Ra5
{[%clk 0:00:05.3]} 1-0